fUST/lending_fUST_20251114
["ID","MTS","AMOUNT","RATE_DAILY","PERIOD"]
[393873530,1763059254043,-168.56,0.00031638,2]
[393873540,1763059323928,150.0,0.00038953,30]
[393873541,1763059324933,150.0,0.00038953,30]
[393873542,1763059325357,150.0,0.00038953,30]
[393873543,1763059325871,150.0,0.00038953,30]
[393873544,1763059326274,171.92,0.00038953,30]
[393873545,1763059326688,206.3,0.00038953,30]
[393873546,1763059327090,240.68,0.00038953,30]
[393873547,1763059327511,275.07,0.00038953,30]
[393873548,1763059327936,309.45,0.00038953,30]
[393873562,1763059395401,185.28769829,0.00022943,2]
[393873565,1763059462338,-150.0,0.00028883,2]
[393873566,1763059462362,-68.08250912,0.00031508,2]
[393873567,1763059466505,-81.91749088,0.00031508,2]
[393873568,1763059475035,-150.0,0.00028973,2]
[393873569,1763059475058,-49.78190395,0.00031607,2]
[393873570,1763059477436,-100.21809605,0.00031607,2]
[393873571,1763059505615,-403.63141565,0.00030876,2]
[393873572,1763059508840,-343.84510446,0.00030876,2]
[393873573,1763059510772,-156.94462466,0.00030876,2]
[393873574,1763059529808,-154.90725084,0.000329,120]
[393873575,1763059531609,-254.71759018,0.000329,120]
[393873576,1763059533589,-91.03670298,0.000329,120]
[393873577,1763059550018,-150.0,0.00028968,2]
[393873578,1763059550043,-4.49965307,0.00031602,2]
[393873579,1763059553050,-145.50034693,0.00031602,2]
[393873599,1763059605134,-200.0,0.000331,7]
[393873600,1763059605155,-904.42114477,0.0003322,2]
[393873601,1763059605179,-205.7477954,0.00033235,60]
[393873602,1763059605200,-1000.0,0.00033696,30]
[393873603,1763059605219,-500.661544,0.000339,120]
[393873604,1763059605238,-200.0,0.000341,7]
[393873605,1763059605259,-150.0,0.00034235,2]
[393873606,1763059605280,-1075.0,0.00034663,3]
[393873607,1763059605299,-1067.43057369,0.00034664,2]
[393873608,1763059605318,-480.22825361,0.00034871,2]
[393873609,1763059626390,-150.0,0.00029006,2]
[393873610,1763059626414,-150.0,0.00031643,2]
[393873611,1763059694014,150.0,0.00028991,2]
[393873612,1763059694413,150.0,0.00031626,2]
[393873613,1763059700049,-150.0,0.00034279,2]
[393873614,1763059700073,-154.66207162,0.00034771,120]
[393873615,1763059702765,-13.93490691,0.00034771,120]
[393873616,1763059702785,-286.06114372,0.0003487,3]
[393873619,1763059720512,-1313.93885628,0.0003487,3]
[393873620,1763059720557,-400.0,0.0003487,2]
[393873621,1763059720600,-8452.57196635,0.00034871,2]
[393873622,1763059720638,-393.0,0.00034871,3]
[393873623,1763059720677,-300.0,0.00034872,3]
[393873624,1763059720715,-400.0,0.00034872,3]
[393873625,1763059720754,-500.661544,0.000349,120]
[393873626,1763059720796,-2326.99717785,0.00034966,2]
[393873627,1763059720836,-176.0,0.00035,120]
[393873628,1763059720875,-200.0,0.000351,7]
[393873629,1763059720913,-1506.185062,0.00035239,2]
[393873630,1763059720954,-150.467,0.0003526,41]
[393873631,1763059720993,-4389.72132587,0.00035273,2]
[393873632,1763059721038,-359.7146126,0.00035328,7]
[393873633,1763059721078,-418.81571955,0.00035328,7]
[393873634,1763059721118,-500.0,0.00035328,7]
[393873635,1763059721157,-500.0,0.00035328,7]
[393873636,1763059721196,-500.0,0.00035328,7]
[393873637,1763059721235,-429.03140036,0.00035328,7]
[393873638,1763059721278,-500.0,0.00035328,7]
[393873639,1763059721318,-500.0,0.00035328,7]
[393873640,1763059721354,-500.0,0.00035328,7]
[393873641,1763059721395,-500.0,0.00035328,7]
[393873642,1763059721432,-500.0,0.00035328,7]
[393873643,1763059721470,-500.0,0.00035328,7]
[393873644,1763059721510,-500.0,0.00035328,7]
[393873645,1763059721552,-500.0,0.00035328,7]
[393873646,1763059721594,-500.0,0.00035328,7]
[393873647,1763059721707,-500.0,0.00035328,7]
[393873648,1763059721747,-404.5744312,0.00035328,7]
[393873649,1763059721792,-500.0,0.00035328,7]
[393873650,1763059721831,-500.0,0.00035328,7]
[393873651,1763059721868,-500.0,0.00035328,7]
[393873652,1763059721908,-500.0,0.00035328,7]
[393873653,1763059721949,-500.0,0.00035328,7]
[393873654,1763059721988,-550.65527595,0.00035328,7]
[393873655,1763059722034,-500.0,0.00035328,7]
[393873656,1763059722076,-500.0,0.00035328,7]
[393873657,1763059722119,-500.0,0.00035328,7]
[393873658,1763059722158,-500.0,0.00035328,7]
[393873659,1763059722195,-456.65623282,0.00035328,7]
[393873660,1763059722236,-500.0,0.00035328,7]
[393873661,1763059722275,-500.0,0.00035328,7]
[393873662,1763059722312,-500.0,0.00035328,7]
[393873663,1763059722349,-500.0,0.00035328,7]
[393873664,1763059722386,-500.0,0.00035328,7]
[393873665,1763059722422,-500.0,0.00035328,7]
[393873666,1763059722462,-500.0,0.00035328,7]
[393873667,1763059722500,-500.0,0.00035328,7]
[393873668,1763059722539,-500.0,0.00035328,7]
[393873669,1763059722573,-500.0,0.00035328,7]
[393873670,1763059722612,-500.0,0.00035328,7]
[393873671,1763059722649,-320.4033631,0.00035328,7]
[393873672,1763059722685,-500.0,0.00035328,7]
[393873673,1763059722724,-500.0,0.00035328,7]
[393873674,1763059722761,-500.0,0.00035328,7]
[393873675,1763059722801,-550.00000001,0.00035328,7]
[393873676,1763059722841,-500.0,0.00035328,7]
[393873677,1763059722882,-500.0,0.00035328,7]
[393873678,1763059722920,-500.0,0.00035328,7]
[393873679,1763059722958,-500.0,0.00035328,7]
[393873680,1763059722996,-500.0,0.00035328,7]
[393873681,1763059723039,-500.0,0.00035328,7]
[393873682,1763059723080,-500.0,0.00035328,7]
[393873683,1763059723117,-500.0,0.00035328,7]
[393873684,1763059723154,-500.0,0.00035328,7]
[393873685,1763059723195,-500.0,0.00035328,7]
[393873686,1763059723313,-274.97766105,0.00035328,7]
[393873687,1763059723351,-200.0,0.00035328,7]
[393873688,1763059723387,-154.82506016,0.00035328,7]
[393873689,1763059723425,-500.0,0.00035328,7]
[393873690,1763059723464,-500.0,0.00035328,7]
[393873691,1763059723502,-500.0,0.00035328,7]
[393873692,1763059723540,-500.0,0.00035328,7]
[393873693,1763059723581,-500.0,0.00035328,7]
[393873694,1763059723621,-500.0,0.00035328,7]
[393873695,1763059723659,-500.0,0.00035328,7]
[393873696,1763059723699,-500.0,0.00035328,7]
[393873697,1763059723738,-500.0,0.00035328,7]
[393873698,1763059723777,-500.0,0.00035328,7]
[393873699,1763059723815,-500.0,0.00035328,7]
[393873700,1763059723852,-500.0,0.00035328,7]
[393873701,1763059723893,-500.0,0.00035328,7]
[393873702,1763059723932,-500.0,0.00035328,7]
[393873703,1763059723973,-500.0,0.00035328,7]
[393873704,1763059724011,-500.0,0.00035328,7]
[393873705,1763059724054,-500.0,0.00035328,7]
[393873706,1763059724099,-544.48002662,0.00035328,7]
[393873707,1763059724137,-500.0,0.00035328,7]
[393873708,1763059724179,-500.0,0.00035328,7]
[393873709,1763059724218,-500.0,0.00035328,7]
[393873710,1763059724259,-500.0,0.00035328,7]
[393873711,1763059724297,-500.0,0.00035328,7]
[393873712,1763059724335,-500.0,0.00035328,7]
[393873713,1763059724372,-500.0,0.00035328,7]
[393873714,1763059724412,-500.0,0.00035328,7]
[393873715,1763059724449,-500.0,0.00035328,7]
[393873716,1763059724489,-500.0,0.00035328,7]
[393873717,1763059724530,-500.0,0.00035328,7]
[393873718,1763059724575,-500.0,0.00035328,7]
[393873719,1763059724613,-500.0,0.00035328,7]
[393873720,1763059724654,-500.0,0.00035328,7]
[393873721,1763059724693,-500.0,0.00035328,7]
[393873722,1763059724737,-500.0,0.00035328,7]
[393873723,1763059724779,-500.0,0.00035328,7]
[393873724,1763059724817,-500.0,0.00035328,7]
[393873725,1763059724938,-500.0,0.00035328,7]
[393873726,1763059724979,-500.0,0.00035328,7]
[393873727,1763059725021,-500.0,0.00035328,7]
[393873728,1763059725061,-500.0,0.00035328,7]
[393873729,1763059725101,-500.0,0.00035328,7]
[393873730,1763059725139,-500.0,0.00035328,7]
[393873731,1763059725179,-500.0,0.00035328,7]
[393873732,1763059725217,-500.0,0.00035328,7]
[393873733,1763059725259,-500.0,0.00035328,7]
[393873734,1763059725300,-500.0,0.00035328,7]
[393873735,1763059725338,-500.0,0.00035328,7]
[393873736,1763059725380,-500.0,0.00035328,7]
[393873737,1763059725421,-500.0,0.00035328,7]
[393873738,1763059725458,-500.0,0.00035328,7]
[393873739,1763059725495,-186878.137792,0.00035329,3]
[393873740,1763059725532,-2014.16,0.0003533,3]
[393873741,1763059725569,-1007.08,0.0003533,3]
[393873742,1763059725607,-503.54,0.0003533,3]
[393873743,1763059725643,-26696.8768275,0.00035331,3]
[393873744,1763059725678,-29044.7657464,0.00035341,2]
[393873745,1763059725713,-440.58089208,0.00035373,5]
[393873746,1763059725748,-308.84687146,0.00035373,5]
[393873747,1763059725784,-500.0,0.00035373,5]
[393873748,1763059725821,-329.43474587,0.00035373,5]
[393873749,1763059725857,-500.0,0.00035373,5]
[393873750,1763059725894,-500.0,0.00035373,5]
[393873751,1763059726025,500.0,0.00035328,7]
[393873752,1763059726075,500.0,0.00035328,7]
[393873753,1763059726123,500.0,0.00035328,7]
[393873754,1763059726162,464.14154271,0.00035328,7]
[393873755,1763059726206,500.0,0.00035328,7]
[393873756,1763059726251,500.0,0.00035328,7]
[393873757,1763059726296,500.0,0.00035328,7]
[393873758,1763059726346,500.0,0.00035328,7]
[393873759,1763059726472,500.0,0.00035328,7]
[393873760,1763059726538,500.0,0.00035328,7]
[393873761,1763059726679,176.08,0.00035319,10]
[393873773,1763059730048,-341.62062842,0.00035563,2]
[393873774,1763059734326,-210.3783413,0.00035563,2]
[393873775,1763059737642,-164.1545344,0.00035563,2]
[393873776,1763059739051,-188.26764065,0.00035563,2]
[393873777,1763059739074,-39.69987226,0.00035616,2]
[393873778,1763059741201,-133.62361226,0.00035616,2]
[393873779,1763059741226,-138.40887483,0.00035773,5]
[393873780,1763059743316,-243.64113867,0.00035773,5]
[393873781,1763059746109,500.0,0.0003534,2]
[393873782,1763059746277,151.0,0.00038953,30]
[393873783,1763059746358,500.0,0.0003534,2]
[393873784,1763059746908,156.587,0.00038953,120]
[393873785,1763059747516,162.380719,0.00038953,30]
[393873786,1763059748128,168.3888056,0.00038953,120]
[393873787,1763059748467,-117.9499865,0.00035773,5]
[393873788,1763059748490,-282.0500135,0.00035849,3]
[393873789,1763059748736,174.61919141,0.00038953,30]
[393873790,1763059749411,181.08010149,0.00038953,30]
[393873791,1763059749649,500.0,0.00035328,7]
[393873792,1763059749680,4459.85267993,0.00035328,7]
[393873793,1763059749708,500.0,0.00035328,7]
[393873794,1763059749735,500.0,0.00035328,7]
[393873795,1763059749764,500.0,0.00035328,7]
[393873796,1763059749795,500.0,0.00035328,7]
[393873797,1763059749827,386.10862901,0.00035328,7]
[393873798,1763059749856,500.0,0.00035328,7]
[393873799,1763059749886,500.0,0.00035328,7]
[393873800,1763059749920,477.96869106,0.00035328,7]
[393873801,1763059749950,3981.88398887,0.00035328,7]
[393873802,1763059749979,500.0,0.00035328,7]
[393873803,1763059750007,500.0,0.00035328,7]
[393873804,1763059750049,4459.85267993,0.00035328,7]
[393873805,1763059750080,500.0,0.00035328,7]
[393873806,1763059750112,58.2733312,0.00035328,7]
[393873807,1763059750135,441.7266688,0.00035328,7]
[393873808,1763059750166,4459.85267993,0.00035328,7]
[393873809,1763059750195,500.0,0.00035328,7]
[393873810,1763059750222,500.0,0.00035328,7]
[393873811,1763059750250,500.0,0.00035328,7]
[393873812,1763059750280,3598.43065127,0.00035328,7]
[393873813,1763059750450,861.42202866,0.00035328,7]
[393873814,1763059750489,500.0,0.00035328,7]
[393873815,1763059750522,500.0,0.00035328,7]
[393873816,1763059750562,4459.85267993,0.00035328,7]
[393873817,1763059750599,500.0,0.00035328,7]
[393873818,1763059750630,500.0,0.00035328,7]
[393873819,1763059750663,2678.73529141,0.00035328,7]
[393873820,1763059750692,1781.11738852,0.00035328,7]
[393873821,1763059750723,4459.85267993,0.00035328,7]
[393873822,1763059750751,500.0,0.00035328,7]
[393873823,1763059750781,500.0,0.00035328,7]
[393873824,1763059750819,2759.03993155,0.00035328,7]
[393873825,1763059750858,1700.81274838,0.00035328,7]
[393873826,1763059750903,500.0,0.00035328,7]
[393873827,1763059750942,500.0,0.00035328,7]
[393873828,1763059750983,4459.85267993,0.00035328,7]
[393873829,1763059751020,500.0,0.00035328,7]
[393873830,1763059751064,187.78006525,0.00038953,40]
[393873831,1763059751107,4459.85267993,0.00035328,7]
[393873832,1763059751146,267.4807211,0.00035328,7]
[393873833,1763059751186,500.0,0.00035328,7]
[393873834,1763059751262,500.0,0.00035328,7]
[393873835,1763059751305,500.0,0.00035328,7]
[393873836,1763059751341,500.0,0.00035328,7]
[393873837,1763059751378,500.0,0.00035328,7]
[393873838,1763059751416,500.0,0.00035328,7]
[393873839,1763059751459,4459.85267993,0.00035328,7]
[393873840,1763059751498,500.0,0.00035328,7]
[393873841,1763059751539,500.0,0.00035328,7]
[393873842,1763059751587,4459.85267993,0.00035328,7]
[393873843,1763059751628,500.0,0.00035328,7]
[393873844,1763059751673,4459.85267993,0.00035328,7]
[393873845,1763059751712,500.0,0.00035328,7]
[393873846,1763059751753,4459.85267993,0.00035328,7]
[393873847,1763059751807,500.0,0.00035328,7]
[393873848,1763059751867,500.0,0.00035328,7]
[393873849,1763059751909,4459.85267993,0.00035328,7]
[393873850,1763059751951,4459.85267993,0.00035328,7]
[393873851,1763059752000,4459.85267993,0.00035328,7]
[393873852,1763059752043,4459.85267993,0.00035328,7]
[393873853,1763059752091,4459.85267993,0.00035328,7]
[393873854,1763059752130,4459.85267993,0.00035328,7]
[393873855,1763059752169,4459.85267993,0.00035328,7]
[393873856,1763059752214,4459.85267993,0.00035328,7]
[393873857,1763059752253,500.0,0.00035328,7]
[393873858,1763059752378,4459.85267993,0.00035328,7]
[393873859,1763059752407,194.72792766,0.00038953,120]
[393873860,1763059752453,4459.85267993,0.00035328,7]
[393873861,1763059752500,4459.85267993,0.00035328,7]
[393873862,1763059752538,500.0,0.00035328,7]
[393873863,1763059752582,4459.85267993,0.00035328,7]
[393873864,1763059752621,4459.85267993,0.00035328,7]
[393873865,1763059752658,500.0,0.00035328,7]
[393873866,1763059752697,4459.85267993,0.00035328,7]
[393873867,1763059752734,202.84077591,0.00035328,7]
[393873868,1763059752776,4459.85267993,0.00035328,7]
[393873869,1763059752816,500.0,0.00035328,7]
[393873870,1763059752858,4459.85267993,0.00035328,7]
[393873871,1763059752896,500.0,0.00035328,7]
[393873872,1763059752938,4459.85267993,0.00035328,7]
[393873873,1763059752983,4459.85267993,0.00035328,7]
[393873874,1763059753025,4459.85267993,0.00035328,7]
[393873875,1763059753070,4459.85267993,0.00035328,7]
[393873876,1763059753113,4459.85267993,0.00035328,7]
[393873877,1763059753152,4459.85267993,0.00035328,7]
[393873878,1763059753180,201.93286099,0.00038953,110]
[393873879,1763059753220,4459.85267993,0.00035328,7]
[393873880,1763059753259,4459.85267993,0.00035328,7]
[393873881,1763059753301,4459.85267993,0.00035328,7]
[393873882,1763059753343,4459.85267993,0.00035328,7]
[393873883,1763059753388,4459.85267993,0.00035328,7]
[393873884,1763059753414,-355.71740337,0.00035849,3]
[393873885,1763059753452,970.05239437,0.00035328,7]
[393873886,1763059753512,209.40437684,0.00038953,20]
[393873887,1763059753560,217.15233878,0.00038953,20]
[393873888,1763059753595,225.18697532,0.00038953,20]
[393873889,1763059753805,233.51889341,0.00038953,20]
[393873890,1763059754411,242.15909246,0.00038953,20]
[393873892,1763059755023,251.11897888,0.00038953,20]
[393873893,1763059755621,260.4103811,0.00038953,20]
[393873894,1763059756224,270.0455652,0.00038953,20]
[393873895,1763059756833,280.03725112,0.00038953,20]
[393873896,1763059757598,290.39862941,0.00038953,20]
[393873897,1763059758220,290.39862941,0.00038953,20]
[393873899,1763059764953,-3489.80028556,0.00035328,7]
[393873900,1763059765181,-4459.85267993,0.00035328,7]
[393873901,1763059765386,-4459.85267993,0.00035328,7]
[393873902,1763059765622,-4459.85267993,0.00035328,7]
[393873903,1763059765739,-4459.85267993,0.00035328,7]
[393873904,1763059769318,-4459.85267993,0.00035328,7]
[393873905,1763059769340,-500.0,0.00035328,7]
[393873906,1763059769360,-117.55258313,0.00035849,3]
[393873907,1763059769381,-251.77,0.0003585,3]
[393873908,1763059769401,-400.0,0.00035859,2]
[393873909,1763059769422,-880.41,0.0003586,10]
[393873910,1763059769442,-26696.8768275,0.0003586,3]
[393873911,1763059769461,-78817.0,0.0003587,7]
[393873912,1763059769481,-501.15877118,0.00035873,5]
[393873913,1763059769501,-472.45402741,0.00035873,5]
[393873914,1763059769523,-504.39231402,0.00035899,4]
[393873915,1763059769547,-317.98166249,0.00035899,4]
[393873916,1763059769572,-500.661544,0.000359,120]
[393873917,1763059769594,-500.0,0.00035921,5]
[393873918,1763059769615,-1000.0,0.00035921,5]
[393873919,1763059769637,-500.0,0.00035921,5]
[393873920,1763059769662,-166.42261994,0.00036213,60]
[393873921,1763059769685,-152.82,0.00036265,60]
[393873922,1763059769706,-185.28769829,0.0003631,2]
[393873923,1763059769729,-297.43299069,0.0003631,2]
[393873924,1763059769751,-297.47125223,0.0003631,2]
[393873925,1763059769774,-177.09565355,0.00036348,2]
[393873926,1763059769798,-226.87082041,0.00036348,2]
[393873927,1763059769830,-152.82,0.00036365,60]
[393873928,1763059769853,-407.8555061,0.00036456,2]
[393873929,1763059769876,-160.0,0.0003646,2]
[393873930,1763059769898,-152.82,0.00036465,60]
[393873931,1763059769919,-229.51,0.00036465,60]
[393873932,1763059769939,-152.81,0.00036465,60]
[393873933,1763059769959,-1500.0,0.00036468,5]
[393873934,1763059769979,-150.0,0.00036473,5]
[393873935,1763059770003,-178.943956,0.000365,7]
[393873936,1763059770029,-152.82,0.00036565,60]
[393873937,1763059770050,-152.82,0.00036665,60]
[393873938,1763059770077,-4028.32,0.000367,3]
[393873939,1763059770097,-2014.16,0.000367,3]
[393873940,1763059770120,-1007.08,0.000367,3]
[393873941,1763059770142,-152.82,0.00036765,60]
[393873942,1763059770165,-152.82,0.00036865,60]
[393873943,1763059770188,-152.82,0.00036965,60]
[393873944,1763059770207,-500.661544,0.00037,120]
[393873945,1763059770226,-260.0,0.00037008,2]
[393873946,1763059770254,-302.61912707,0.00037021,5]
[393873947,1763059770283,-152.82,0.00037065,60]
[393873948,1763059770311,-178.943956,0.00037084,20]
[393873949,1763059770339,-202.73,0.000371,7]
[393873950,1763059770363,-225.6286586,0.00037165,60]
[393873951,1763059770389,-152.82,0.00037165,60]
[393873952,1763059770414,-178.943956,0.00037213,20]
[393873953,1763059770437,-503.54,0.0003722,3]
[393873954,1763059770463,-152.82,0.00037265,60]
[393873955,1763059770488,-178.943956,0.00037342,20]
[393873956,1763059770515,-152.82,0.00037365,60]
[393873957,1763059770539,-2240.0,0.00037393,3]
[393873958,1763059770562,-200.0,0.00037395,3]
[393873959,1763059770593,-500.0,0.0003742,2]
[393873960,1763059770617,-151.0,0.00037461,2]
[393873961,1763059770641,-174.32657317,0.00037461,2]
[393873962,1763059770667,-152.82,0.00037465,60]
[393873963,1763059770692,-178.943956,0.00037471,20]
[393873964,1763059770716,-500.0,0.00037473,5]
[393873965,1763059770738,-150.0,0.00037473,5]
[393873966,1763059770761,-500.0,0.00037483,2]
[393873967,1763059770783,-360.0,0.00037556,2]
[393873968,1763059770809,-152.82,0.00037565,60]
[393873969,1763059770837,-500.0,0.00037573,5]
[393873970,1763059770863,-500.0,0.00037583,2]
[393873971,1763059770888,-500.0,0.00037583,2]
[393873972,1763059770913,-500.0,0.00037583,2]
[393873973,1763059770940,-178.943956,0.00037588,7]
[393873974,1763059770965,-16187.52461029,0.00037596,20]
[393873975,1763059770998,150.0,0.00028952,2]
[393873976,1763059773128,-150.0,0.00031584,2]
[393873977,1763059773156,-150.0,0.00034217,2]
[393873978,1763059773181,-150.0,0.00036849,2]
[393873979,1763059773202,-5777.66675431,0.00037596,20]
[393873980,1763059791463,-500.0,0.00035328,7]
[393873981,1763059791503,-500.0,0.00035328,7]
[393873982,1763059791542,-500.0,0.00035328,7]
[393873983,1763059791582,-500.0,0.00035328,7]
[393873984,1763059791619,-500.0,0.00035328,7]
[393873985,1763059791658,-500.0,0.00035328,7]
[393873986,1763059791695,-500.0,0.00035328,7]
[393873987,1763059791737,-500.0,0.00035328,7]
[393873988,1763059791775,-500.0,0.00035328,7]
[393873989,1763059791814,-500.0,0.00035328,7]
[393873990,1763059791853,-500.0,0.00035328,7]
[393873991,1763059792119,1100.04647324,0.00035328,2]
[393873994,1763059794835,4064.67586019,0.00035328,7]
[393873996,1763059795131,4064.67586019,0.00035328,7]
[393873997,1763059795465,4064.67586019,0.00035328,7]
[393873998,1763059795760,4064.67586019,0.00035328,7]
[393873999,1763059796077,4064.67586019,0.00035328,7]
[393874000,1763059796465,4064.67586019,0.00035328,7]
[393874001,1763059796846,4064.67586019,0.00035328,7]
[393874002,1763059797177,4064.67586019,0.00035328,7]
[393874003,1763059797507,4064.67586019,0.00035328,7]
[393874004,1763059797843,4064.67586019,0.00035328,7]
[393874005,1763059798163,4064.67586019,0.00035328,7]
[393874006,1763059798517,4064.67586019,0.00035328,7]
[393874007,1763059798844,4064.67586019,0.00035328,7]
[393874008,1763059799265,4064.67586019,0.00035328,7]
[393874009,1763059799581,4064.67586019,0.00035328,7]
[393874010,1763059799623,4064.67586019,0.00035328,7]
[393874011,1763059799664,4064.67586019,0.00035328,7]
[393874012,1763059799703,4064.67586019,0.00035328,7]
[393874013,1763059799741,4064.67586019,0.00035328,7]
[393874014,1763059799780,4064.67586019,0.00035328,7]
[393874015,1763059799820,4064.67586019,0.00035328,7]
[393874016,1763059799951,4064.67586019,0.00035328,7]
[393874017,1763059800001,4064.67586019,0.00035328,7]
[393874018,1763059800047,4064.67586019,0.00035328,7]
[393874019,1763059800088,4064.67586019,0.00035328,7]
[393874020,1763059800130,4064.67586019,0.00035328,7]
[393874021,1763059800605,183.90201108,0.00035328,7]
[393874022,1763059804999,-193.29885435,0.00037094,2]
[393874023,1763059807644,-99.19829195,0.00037094,2]
[393874024,1763059807666,-95.35227505,0.00037595,3]
[393874025,1763059809763,-204.64772495,0.00037595,3]
[393874026,1763059809784,-171.36251294,0.00037595,2]
[393874028,1763059810915,684.87000958,0.00035328,7]
[393874029,1763059810958,684.87000958,0.00035328,7]
[393874030,1763059811002,684.87000958,0.00035328,7]
[393874031,1763059813867,-221.19458026,0.00037595,2]
[393874032,1763059816658,151.0,0.00031584,14]
[393874033,1763059816914,151.0,0.00038953,30]
[393874034,1763059817552,156.587,0.00038953,120]
[393874035,1763059818159,162.380719,0.00038953,30]
[393874036,1763059818191,-7.4429068,0.00037595,2]
[393874037,1763059818214,-201.70240487,0.00037595,3]
[393874038,1763059818751,168.3888056,0.00038953,120]
[393874039,1763059819382,174.61919141,0.00038953,30]
[393874040,1763059819993,181.08010149,0.00038953,30]
[393874041,1763059820140,-98.29759513,0.00037595,3]
[393874042,1763059820162,-198.21403109,0.00037595,3]
[393874043,1763059820601,187.78006525,0.00038953,40]
[393874044,1763059821214,194.72792766,0.00038953,120]
[393874045,1763059821824,201.93286099,0.00038953,110]
[393874046,1763059822118,160.0,0.000338,2]
[393874047,1763059822485,209.40437684,0.00038953,20]
[393874048,1763059822554,260.0,0.00034348,2]
[393874049,1763059822893,360.0,0.00034896,2]
[393874050,1763059823070,217.15233878,0.00038953,20]
[393874051,1763059823674,225.18697532,0.00038953,20]
[393874052,1763059825354,-173.16870813,0.00035444,2]
[393874053,1763059825902,233.51889341,0.00038953,20]
[393874054,1763059826517,242.15909246,0.00038953,20]
[393874055,1763059827131,251.11897888,0.00038953,20]
[393874056,1763059827735,260.4103811,0.00038953,20]
[393874057,1763059828351,270.0455652,0.00038953,20]
[393874058,1763059829406,280.03725112,0.00038953,20]
[393874059,1763059829449,242.81238834,0.00035328,7]
[393874060,1763059830040,290.39862941,0.00038953,20]
[393874061,1763059830664,290.39862941,0.00038953,20]
[393874096,1763059836515,-157.21272931,0.00035444,2]
[393874130,1763059838224,-129.61856256,0.00035444,2]
[393874132,1763059838234,-560.0,0.00035992,2]
[393874134,1763059838243,-660.0,0.0003654,2]
[393874135,1763059838252,-760.0,0.00037088,2]
[393874137,1763059838261,-1401.78596891,0.00037595,3]
[393874139,1763059838270,-400.0,0.00037595,3]
[393874141,1763059838280,-18034.8086354,0.00037596,20]
[393874143,1763059838289,-401.91,0.000376,7]
[393874144,1763059838298,-175.17,0.000376,30]
[393874145,1763059838308,-165.404367,0.000376,20]
[393874146,1763059838318,-178.943956,0.000376,20]
[393874147,1763059838327,-340.0,0.00037636,2]
[393874148,1763059838337,-152.82,0.00037665,60]
[393874149,1763059838347,-455.78987998,0.00037753,120]
[393874150,1763059838356,-152.82,0.00037765,60]
[393874151,1763059838367,-300.0,0.000378,2]
[393874152,1763059838376,-152.82,0.00037865,60]
[393874154,1763059838386,-904.42114477,0.00037907,2]
[393874157,1763059838395,-152.82,0.00037965,60]
[393874160,1763059838405,-297.24115974,0.00038021,5]
[393874163,1763059838415,-250.0,0.00038021,5]
[393874166,1763059838424,-152.82,0.00038065,60]
[393874169,1763059838433,-1009.18458915,0.00038121,5]
[393874172,1763059838443,-152.82,0.00038165,60]
[393874175,1763059838452,-152.82,0.00038265,60]
[393874178,1763059838461,-152.82,0.00038365,120]
[393874180,1763059838471,-152.82,0.00038465,120]
[393874182,1763059838480,-152.82,0.00038565,120]
[393874184,1763059838490,-200.0,0.00038568,5]